fUSD/lending_fUSD_20240614
["ID","MTS","AMOUNT","RATE_DAILY","PERIOD"]
[329444700,1718356232898,-10644.45155359,0.000139,2]
[329444701,1718356232917,-1362.78815069,0.000139,2]
[329444703,1718356239589,-31246.87699572,0.000139,2]
[329444704,1718356239603,-159.54,0.00013937,2]
[329444705,1718356239622,-245.933261,0.00013973,2]
[329444706,1718356239641,-152.88,0.0001399,2]
[329444707,1718356239652,-227.42485093,0.00013999,2]
[329444708,1718356239696,-150.0,0.00013999,2]
[329444709,1718356239719,-150.0,0.00013999,2]
[329444710,1718356239793,-300.0,0.00013999,2]
[329444711,1718356239826,-25130.1696497,0.00014,2]
[329444712,1718356240255,-24879.45961033,0.00014,2]
[329444713,1718356240641,-3199.2809199,0.00014,2]
[329444737,1718356244460,-23471.61806955,0.00014,2]
[329444755,1718356247887,-151.61656729,0.00013999,2]
[329444756,1718356247898,-129.92016004,0.00014,2]
[329444757,1718356248030,-960.80812001,0.00014,2]
[329444758,1718356248089,-861.99287988,0.00014,2]
[329444759,1718356249158,-1723.49402903,0.00014,2]
[329444760,1718356249372,-12136.9302136,0.00014,2]
[329444761,1718356249385,-3005.46167019,0.00014,2]
[329444762,1718356249770,-442.27075883,0.00014,2]
[329444779,1718356250615,-150.01,0.00013999,2]
[329444782,1718356250630,-431.3757254,0.00014,2]
[329444806,1718356254600,-603.33007925,0.00013998,2]
[329444807,1718356254615,-2863.58084316,0.00014,2]
[329444808,1718356254801,-931.92849026,0.00014,2]
[329444809,1718356255235,-356.19588052,0.00014,2]
[329444810,1718356255286,-552.33090042,0.00014,2]
[329444811,1718356255301,-29082.38687542,0.00014,2]
[329444812,1718356255319,-1818.9,0.00014,2]
[329444813,1718356255440,-492.12591951,0.00014,2]
[329444814,1718356255672,-320.10297877,0.00014,2]
[329444815,1718356487014,-176.62524942,0.00011238,2]
[329444816,1718356487129,-296.05843551,0.00011239,2]
[329444817,1718356487215,-4231.04,0.00011239,2]
[329444818,1718356487254,-646.2353513,0.0001124,2]
[329444819,1718356487318,-561.98,0.00011241,2]
[329444820,1718356487378,-380.37462389,0.00012354,2]
[329444821,1718356487437,-925.22507668,0.00012457,2]
[329444822,1718356487513,-453.5756057,0.00012458,2]
[329444823,1718356487565,-328.8856575,0.00012598,2]
[329444824,1718356513924,386.0,0.00028,90]
[329444836,1718357433323,-533.88,0.00012019,2]
[329444837,1718357433339,-95.5755059,0.00012598,2]
[329444838,1718357433358,-250.0,0.00012678,2]
[329444839,1718357433386,-200.0,0.0001269,2]
[329444840,1718357433397,-8212.6893,0.00012702,2]
[329444841,1718357433411,-150.0,0.00012748,2]
[329444842,1718357433422,-727.6,0.00012749,2]
[329444843,1718357433433,-2069.92,0.00012774,2]
[329444844,1718357433452,-23900.0,0.00012802,2]
[329444845,1718357433471,-250.0,0.00012837,2]
[329444846,1718357433485,-244.63,0.00012921,2]
[329444847,1718357433509,-165.24,0.00012921,2]
[329444848,1718357433526,-165.24,0.00012953,2]
[329444849,1718357433543,-1000.0,0.00012954,2]
[329444850,1718357433563,-554.01,0.00012954,2]
[329444851,1718357433574,-664.25,0.00012954,2]
[329444852,1718357433600,-165.24,0.00012985,2]
[329444853,1718357433627,-813.48792728,0.00013205,2]
[329444854,1718357433644,-167.91,0.0001323,2]
[329444855,1718357433657,-499.99,0.00013536,2]
[329444856,1718357433674,-200.0,0.00013699,2]
[329444857,1718357433698,-163.07,0.00013699,2]
[329444858,1718357433717,-314.94,0.00013699,2]
[329444859,1718357433729,-13504.3976117,0.00013797,2]
[329444860,1718357433739,-5276.26861204,0.0001386,2]
[329444861,1718357433812,-444.06,0.0001386,2]
[329444862,1718357433859,-720.0,0.0001386,2]
[329444863,1718357433885,-397.08384421,0.0001386,2]
[329444864,1718357434001,-32274.14143497,0.0001386,2]
[329444865,1718357434011,-500.0,0.00013887,2]
[329444866,1718357434024,-500.0,0.00013888,2]
[329444867,1718357434040,-200.0,0.00013888,2]
[329444868,1718357434058,-2500.0,0.00013888,2]
[329444869,1718357434088,-219.61,0.0001389,3]
[329444870,1718357434100,-380.56795246,0.00013898,2]
[329444871,1718357434118,-189.27721259,0.00013898,2]
[329444872,1718357434144,-3510.731,0.00013898,2]
[329444873,1718357434160,-654.5863,0.00013898,2]
[329444874,1718357434171,-374.8776,0.00013898,2]
[329444875,1718357434183,-49777.7223,0.00013898,2]
[329444876,1718357434196,-277.887,0.00013898,2]
[329444877,1718357434210,-17209.86268594,0.000139,2]
[329444878,1718357434223,-208.66770741,0.000139,2]
[329444879,1718357434246,-174.83982574,0.000139,2]
[329444880,1718357434264,-1091.46006946,0.000139,2]
[329444881,1718357434276,-189.27721258,0.000139,2]
[329444882,1718357434289,-150.0,0.00013937,2]
[329444883,1718357434308,-414.21555173,0.00013954,2]
[329444884,1718357434333,-383.08543461,0.00013962,2]
[329444885,1718357434356,-215.42781805,0.00013988,2]
[329444886,1718357434370,-152.01,0.00013988,2]
[329444887,1718357434383,-152.01,0.0001399,2]
[329444888,1718357434414,-152.01,0.0001399,2]
[329444889,1718357434429,-155.123,0.00013996,2]
[329444890,1718357434465,-400.0,0.00013996,2]
[329444891,1718357434496,-155.81399374,0.00013996,2]
[329444892,1718357434521,-1956.2379987,0.00013996,2]
[329444893,1718357434537,-209.52678916,0.00013996,2]
[329444894,1718357434551,-2847.23560753,0.00013996,2]
[329444895,1718357434706,-645.8519674,0.00013996,2]
[329444896,1718357434754,-176.22036334,0.00013996,2]
[329444897,1718357434765,-506.80366576,0.00013996,2]
[329444898,1718357434777,-2138.20030163,0.00013996,2]
[329444899,1718357434795,-669.96579635,0.00013996,2]
[329444900,1718357434809,-155.0,0.00013996,2]
[329444901,1718357434820,-1625.30453105,0.00013996,2]
[329444902,1718357434834,-404.27802441,0.00013996,2]
[329444903,1718357434858,-158.98951598,0.00013996,2]
[329444904,1718357434874,-3067.01080739,0.00013997,2]
[329444905,1718357434897,-155.25270372,0.00013998,2]
[329444906,1718357434925,-209.08627003,0.00013998,2]
[329444907,1718357434945,-155.60391856,0.00013998,2]
[329444908,1718357434975,-155.0,0.00013998,2]
[329444909,1718357434995,-1509.86447778,0.00013998,2]
[329444910,1718357435013,-155.0,0.00013998,2]
[329444911,1718357435056,-155.38397192,0.00013998,2]
[329444912,1718357435085,-429.97845481,0.00013998,2]
[329444913,1718357435114,-119931.50840134,0.00013998,2]
[329444914,1718357435226,-843.6035141,0.00013998,2]
[329444915,1718357435265,-445.98886987,0.00013998,2]
[329444916,1718357435281,-18808.75,0.00013998,2]
[329444917,1718357435327,-58702.6319067,0.00013998,2]
[329444918,1718357435467,-318.64482262,0.00013998,2]
[329444919,1718357435503,-337463.96562374,0.00013998,2]
[329444920,1718357435563,-945.02971513,0.00013998,2]
[329444923,1718357435774,-1346.78709982,0.00013998,2]
[329444924,1718357435790,-716.59388063,0.00013998,2]
[329444925,1718357435804,-2657.0803135,0.00013998,2]
[329444926,1718357435876,-374.10436896,0.00013998,2]
[329444930,1718357435969,-2025.59405055,0.00013998,2]
[329444931,1718357435993,-2796.90567683,0.00013998,2]
[329444933,1718357436009,-32666.80254855,0.00013998,2]
[329444974,1718357443677,-1202.26973991,0.00013898,2]
[329444975,1718357443691,-416.93411009,0.00013998,2]
[329444979,1718357443934,-597.22413908,0.00013998,2]
[329444980,1718357444189,-8562.93083767,0.00013998,2]
[329444981,1718357444294,-461.75544879,0.00013998,2]
[329444982,1718357444311,-101529.68288055,0.00013998,2]
[329444983,1718357444323,-10973.78387867,0.00013998,2]
[329444984,1718357444361,-203.58004344,0.00013998,2]
[329444985,1718357444378,-155.93753746,0.00013998,2]
[329444986,1718357444391,-7815.77173616,0.00013998,2]
[329444987,1718357444408,-3565.22156148,0.00013998,2]
[329444988,1718357444423,-476.67782634,0.00013998,2]
[329444989,1718357444436,-480.88976442,0.00013998,2]
[329444990,1718357444456,-155.0,0.00013998,2]
[329444991,1718357444467,-155.17031669,0.00013998,2]
[329444992,1718357444492,-217.1710123,0.00013999,2]
[329444993,1718357444512,-529.82691404,0.00013999,2]
[329444996,1718357444570,-164.78680366,0.00013999,2]
[329444997,1718357444586,-215990.50416113,0.00014,2]
[329444999,1718357444604,-210873.61290102,0.00014,2]
[329445001,1718357444624,-340266.99655593,0.00014,2]
[329445003,1718357444744,-308.94361421,0.00014,2]
[329445004,1718357444919,-1248.42806826,0.00014,2]
[329445005,1718357444939,-34091.18134387,0.00014,2]
[329445006,1718357444968,-2034.2894002,0.00014,2]
[329445007,1718357445005,-586247.37906958,0.00014,2]
[329445008,1718357445035,-234621.50301145,0.00014,2]
[329445009,1718357445053,-573.25215234,0.00014,2]
[329445010,1718357445084,-500.0,0.00014,2]
[329445011,1718357445151,-3124.13574604,0.00014,2]
[329445012,1718357445170,-1668.02297108,0.00014,2]
[329445013,1718357445190,-2938.0929017,0.00014,2]
[329445014,1718357445294,-369.04818863,0.00014,2]
[329445015,1718357445313,-3475.13309198,0.00014,2]
[329445016,1718357445479,-1698.02186945,0.00014,2]
[329445017,1718357445635,-486.91192548,0.00014,2]
[329445018,1718357446030,-53.33071572,0.00014,2]
[329445019,1718357446358,-5020.99625747,0.00014,2]
[329445020,1718357446506,-9736.38644101,0.00014,2]
[329445021,1718357446711,-2336.30743089,0.00014,2]
[329445022,1718357446725,-1759.2,0.00014,2]
[329445023,1718357446834,-95816.75230166,0.00014,2]
[329445024,1718357446856,-341.55483272,0.00014,2]
[329445030,1718357448305,-12115.36860853,0.00014,2]
[329445031,1718357448627,-670.73605,0.00014,2]
[329445032,1718357448642,-1401.02695355,0.00014,2]
[329445033,1718357448791,-2693.4448,0.00014,2]
[329445034,1718357448809,-4654.61803241,0.00014,2]
[329445035,1718357448822,-1348.24207892,0.00014,2]
[329445036,1718357448836,-15478.41705377,0.00014,2]
[329445037,1718357448895,-130175.38496726,0.00014,2]
[329445038,1718357448911,-1608.65019031,0.00014,2]
[329445039,1718357449016,-348.5255592,0.00014,2]
[329445040,1718357449036,-851.42383922,0.00014,2]
[329445041,1718357449060,-508.5,0.00014,2]
[329445042,1718357449169,-358789.31141853,0.00014,2]
[329445043,1718357449188,-40370.55681025,0.00014,2]
[329445044,1718357449202,-151.0,0.00014,2]
[329445045,1718357449229,-156.059096,0.00014,2]
[329445046,1718357449240,-151.0,0.00014,2]
[329445047,1718357449251,-151.0,0.00014,2]
[329445048,1718357449264,-151.0,0.00014,2]
[329445049,1718357449279,-500.0,0.00014,2]
[329445050,1718357449304,-500.0,0.00014,2]
[329445051,1718357449316,-500.0,0.00014,2]
[329445052,1718357449328,-500.0,0.00014,2]
[329445053,1718357449340,-500.0,0.00014,2]
[329445054,1718357449359,-500.0,0.00014,2]
[329445055,1718357449371,-500.0,0.00014,2]
[329445056,1718357449383,-500.0,0.00014,2]
[329445057,1718357449399,-500.0,0.00014,2]
[329445058,1718357449415,-500.0,0.00014,2]
[329445059,1718357449432,-500.0,0.00014,2]
[329445060,1718357449455,-500.0,0.00014,2]
[329445061,1718357449471,-500.0,0.00014,2]
[329445062,1718357449498,-500.0,0.00014,2]
[329445063,1718357449660,-500.0,0.00014,2]
[329445064,1718357449678,-500.0,0.00014,2]
[329445065,1718357449696,-500.0,0.00014,2]
[329445066,1718357449716,-500.0,0.00014,2]
[329445067,1718357449728,-500.0,0.00014,2]
[329445068,1718357449756,-500.0,0.00014,2]
[329445069,1718357449785,-500.0,0.00014,2]
[329445070,1718357449805,-500.0,0.00014,2]
[329445071,1718357449842,-500.0,0.00014,2]
[329445072,1718357449872,-500.0,0.00014,2]
[329445073,1718357449896,-500.0,0.00014,2]
[329445074,1718357449917,-500.0,0.00014,2]
[329445075,1718357449941,-500.0,0.00014,2]
[329445076,1718357449952,-500.0,0.00014,2]
[329445077,1718357449965,-151.0,0.00014,2]
[329445078,1718357449981,-153.024623,0.00014,2]
[329445079,1718357449993,-500.0,0.00014,2]
[329445080,1718357450010,-500.0,0.00014,2]
[329445081,1718357450022,-151.0,0.00014,2]
[329445082,1718357450053,-500.0,0.00014,2]
[329445083,1718357450066,-500.0,0.00014,2]
[329445084,1718357450101,-500.0,0.00014,2]
[329445085,1718357450116,-500.0,0.00014,2]
[329445086,1718357450143,-500.0,0.00014,2]
[329445087,1718357450156,-500.0,0.00014,2]
[329445089,1718357450179,-500.0,0.00014,2]
[329445090,1718357450213,-152.598439,0.00014,2]
[329445091,1718357450245,-151.0,0.00014,2]
[329445092,1718357450262,-151.0,0.00014,2]
[329445093,1718357450281,-152.944186,0.00014,2]
[329445094,1718357450311,-151.0,0.00014,2]
[329445095,1718357450330,-151.0,0.00014,2]
[329445096,1718357450360,-151.0,0.00014,2]
[329445097,1718357450374,-155.510287,0.00014,2]
[329445098,1718357450386,-151.0,0.00014,2]
[329445099,1718357450397,-151.0,0.00014,2]
[329445100,1718357450409,-163.318051,0.00014,2]
[329445101,1718357450421,-154.013156,0.00014,2]
[329445102,1718357450451,-151.0,0.00014,2]
[329445103,1718357450465,-151.0,0.00014,2]
[329445104,1718357450476,-151.0,0.00014,2]
[329445105,1718357450490,-151.0,0.00014,2]
[329445106,1718357450512,-111489.85496863,0.00014,2]
[329445107,1718357450553,-2340.93003738,0.00014,2]
[329445108,1718357464027,155.1469996,0.00010499,2]
[329445133,1718358549443,-250.0,0.00011177,2]
[329445134,1718358551176,-282.96720669,0.00011177,2]
[329445155,1718358633364,-38.84279331,0.00011177,2]
[329445156,1718358633376,-150.0,0.00011799,2]
[329445157,1718358633404,-273.68937001,0.00011799,2]
[329445158,1718358633665,-26.31062999,0.00011799,2]
[329445159,1718358633719,-11259.94190983,0.000118,2]
[329445160,1718358633730,-387.51832949,0.00012458,2]
[329445161,1718358633743,-298.47864126,0.00012598,2]
[329445162,1718358633759,-420.0,0.00012955,2]
[329445163,1718358633771,-210.0,0.00012979,2]
[329445164,1718358633783,-1000.0,0.00012981,2]
[329445165,1718358633820,-250.0,0.00013017,2]
[329445166,1718358633831,-195.7,0.00013052,2]
[329445167,1718358633846,-1569.49,0.00013086,2]
[329445168,1718358633858,-23900.0,0.00013086,2]
[329445169,1718358633869,-150.0,0.00013233,2]
[329445170,1718358633879,-168.63,0.00013382,2]
[329445171,1718358633892,-571.81,0.00013441,2]
[329445172,1718358633904,-273.46,0.00013699,2]
[329445173,1718358633914,-163.07,0.00013699,2]
[329445174,1718358633932,-1563.81,0.00013759,2]
[329445175,1718358633944,-382.84586015,0.0001383,2]
[329445176,1718358633955,-413.92057913,0.0001384,2]
[329445177,1718358633968,-200.0,0.00013887,2]
[329445178,1718358633993,-200.0,0.00013888,2]
[329445179,1718358634006,-500.0,0.00013888,2]
[329445180,1718358634030,-200.0,0.00013888,2]
[329445181,1718358634047,-9720.66977646,0.00013899,2]
[329445182,1718358634064,-499.99,0.000139,2]
[329445183,1718358634076,-27924.17,0.000139,2]
[329445184,1718358634092,-15775.70746213,0.000139,2]
[329445185,1718358634127,-1000.0,0.000139,2]
[329445186,1718358634137,-1051.98602243,0.000139,2]
[329445187,1718358634152,-250.0,0.00013937,2]
[329445188,1718358634171,-221.339935,0.00013973,2]
[329445189,1718358634181,-152.01,0.0001399,2]
[329445190,1718358634204,-6068.925,0.00013993,2]
[329445191,1718358634227,-164.78680366,0.00013999,2]
[329445192,1718358634241,-19255.16715102,0.00014,2]
[329445193,1718358634285,-280.56667432,0.00014,2]
[329445194,1718358635008,-8610.942556,0.00014,2]
[329445213,1718358638501,-2836.54204063,0.00014,2]
[329445214,1718358638669,-490.1733676,0.00014,2]
[329445215,1718358638903,-108733.82320442,0.00014,2]
[329445216,1718358638932,-73037.73858841,0.00014,2]
[329445217,1718358639238,-2348.40046312,0.00014,2]
[329445218,1718358639288,-450.95372915,0.00014,2]
[329445219,1718358639372,-967.5007119,0.00014,2]
[329445259,1718358643943,-164.78680365,0.00013999,2]
[329445260,1718358643963,-482.32743664,0.00014,2]
[329445261,1718358645039,-10512.6138,0.00014,2]
[329445263,1718358646786,-335.46527078,0.00014,2]
[329445264,1718358646801,-6360.52672922,0.00014,2]
[329445265,1718358646821,-44003.43635619,0.00014,2]
[329445271,1718358647579,-623.26266108,0.00014,2]
[329445277,1718358647907,-2887.67808576,0.00014,2]
[329445278,1718358647939,-6776.13789487,0.00014,2]
[329445279,1718358648054,-1500.0,0.00014,2]
[329445285,1718358649085,-1933.92732013,0.00014,2]
[329445286,1718358649109,-1382.14373737,0.00014,2]
[329445287,1718358650262,-212208.50541232,0.00014,2]
[329445293,1718359135345,163.28,0.00010734,2]
[329445294,1718359379909,500.0,0.00028,120]
[329445297,1718359653198,-321.80326282,0.00011076,2]
[329445298,1718359753135,-1474.79646276,0.00011076,2]
[329445299,1718359753186,-546.77,0.00011386,2]
[329445300,1718359753219,-429.9940352,0.00012458,2]
[329445316,1718359833501,-23.5815705,0.00012458,2]
[329445317,1718359833513,-250.0,0.00013196,2]
[329445318,1718359833542,-168.63,0.00013263,2]
[329445319,1718359833555,-1045.31,0.00013265,2]
[329445320,1718359833573,-1000.0,0.00013278,2]
[329445321,1718359833612,-659.16,0.0001332,2]
[329445322,1718359833627,-150.0,0.00013382,2]
[329445323,1718359833652,-150.0,0.00013382,2]
[329445324,1718359833669,-300.0,0.00013382,2]
[329445325,1718359833685,-8864.4591895,0.00013383,2]
[329445326,1718359833745,-6690.0,0.00013383,2]
[329445327,1718359834606,-1197.12981745,0.00013383,2]
[329445328,1718359835120,-3821.84752941,0.00013383,2]
[329445335,1718359840121,-1987.44088235,0.00013383,2]
[329445336,1718359840392,-675.31,0.00013383,2]
[329445347,1718359847380,-663.81258129,0.00013383,2]
[329445348,1718359847394,-299.99,0.00013383,2]
[329445349,1718359847436,-35.9560489,0.0001365,2]
[329445350,1718359847450,-510.8139511,0.0001365,2]
[329445351,1718359847461,-434.87,0.00013699,2]
[329445352,1718359847472,-916.87,0.00013699,2]
[329445353,1718359847484,-321.67,0.00013699,2]
[329445354,1718359847513,-273.46,0.00013699,2]
[329445355,1718359847525,-339.4,0.0001386,2]
[329445356,1718359847536,-3025.65,0.00013899,2]
[329445357,1718359847556,-14974.8269763,0.000139,2]
[329445358,1718359847578,-2672.2202,0.000139,2]
[329445359,1718359847601,-6926.8459,0.000139,2]
[329445360,1718359847620,-941.95100843,0.000139,2]
[329445361,1718359847649,-362.02460038,0.000139,2]
[329445362,1718359847660,-283.98,0.00013937,2]
[329445363,1718359847693,-163.07,0.00013937,2]
[329445364,1718359847704,-152.26,0.0001399,2]
[329445365,1718359847716,-1004.75728231,0.00013998,2]
[329445366,1718359847733,-1249.56334718,0.00013998,2]
[329445367,1718359847745,-1219.43718831,0.00013999,2]
[329445368,1718359847768,-661.28006212,0.00013999,2]
[329445369,1718359847787,-1107.05070098,0.00013999,2]
[329445370,1718359847801,-25532.3974165,0.00013999,2]
[329445371,1718359847819,-191065.87144781,0.00014,2]
[329445372,1718359847904,-8497.82754026,0.00014,2]
[329445373,1718359847918,-59191.76172578,0.00014,2]
[329445374,1718359847989,-9001.20002044,0.00014,2]
[329445375,1718359848009,-2999.27588856,0.00014,2]
[329445376,1718359848028,-11711.79679956,0.00014,2]
[329445377,1718359848045,-1614.67205857,0.00014,2]
[329445378,1718359848095,-2366.66151821,0.00014,2]
[329445379,1718359848120,-1717.12554514,0.00014,2]
[329445380,1718359848141,-925.37892,0.00014,2]
[329445381,1718359848156,-532.19052,0.00014,2]
[329445382,1718359848170,-4270.33473258,0.00014,2]
[329445384,1718359848624,-6277.52029389,0.00014,2]
[329445385,1718359848678,-1611.69,0.00014,2]
[329445386,1718359848706,-26111.00429225,0.00014,2]
[329445387,1718359848861,-6444.30545099,0.00014,2]
[329445390,1718359848876,-2078.39617289,0.00014,2]
[329445392,1718359848899,-904005.91635555,0.00014,2]
[329445394,1718359848917,-500.0,0.00014,2]
[329445396,1718359848928,-500.0,0.00014,2]
[329445398,1718359848940,-500.0,0.00014,2]
[329445400,1718359848951,-500.0,0.00014,2]
[329445402,1718359848966,-500.0,0.00014,2]
[329445404,1718359848999,-2487.9464448,0.00014,2]
[329445406,1718359849010,-2128.09255,0.00014,2]
[329445408,1718359849023,-1000.0,0.00014,2]
[329445410,1718359849033,-1465.2087253,0.00014011,2]
[329445411,1718359849045,-678.3461009,0.00014021,2]
[329445414,1718359849065,-1042.96508975,0.00014065,2]
[329445416,1718359849076,-1042.96508975,0.00014065,2]
[329445418,1718359849088,-161.91560937,0.0001407,2]
[329445420,1718359849099,-1141.0,0.000141,2]
[329445422,1718359849132,-1000.0,0.000142,2]
[329445423,1718359849161,-899.0,0.000142,2]
[329445425,1718359849179,-355.0,0.000142,2]
[329445426,1718359849203,-7199.0,0.00014464,2]
[329445428,1718359849238,-224.06389,0.00014521,2]
[329445429,1718359849262,-865.68,0.00014658,2]
[329445432,1718359849280,-417.77,0.00014658,2]
[329445435,1718359849317,-851.56,0.00014658,2]
[329445437,1718359849410,-417.77,0.00014658,2]
[329445439,1718359849436,-851.56,0.00014658,2]
[329445441,1718359849458,-417.77,0.00014658,2]
[329445443,1718359849487,-195.7,0.00014684,2]
[329445445,1718359849505,-180.07880861,0.000149,2]
[329445447,1718359849519,-1000.0,0.00014938,2]
[329445449,1718359849560,-152.26,0.0001499,2]
[329445451,1718359849572,-152.26,0.0001499,2]
[329445453,1718359849587,-178977.50340257,0.00015,2]
[329445455,1718359849611,-155.0,0.00015,2]
[329445457,1718359849626,-3960.33014078,0.00015,2]
[329445459,1718359849639,-155.0,0.00015,2]
[329445462,1718359849699,-620.48745793,0.00015,2]
[329445463,1718359849744,-155.09158319,0.00015,2]
[329445466,1718359849760,-10168.44442172,0.00015,2]
[329445468,1718359849790,-159.46608696,0.00015,2]
[329445469,1718359849802,-200.0,0.00015,2]
[329445470,1718359849815,-155.0,0.00015,2]
[329445471,1718359849842,-1921.35549994,0.00015,2]
[329445472,1718359849868,-1249788.87040837,0.00015,2]
[329445473,1718359849893,-211209.42115995,0.00015,2]
[329445476,1718359849906,-35603.81815743,0.00015,3]
[329445477,1718359849918,-489.0,0.00015,2]
[329445480,1718359849935,-371833.51869483,0.00015,2]
[329445481,1718359849951,-200.09248676,0.00015,2]
[329445483,1718359849969,-354774.230036,0.00015,2]
[329445485,1718359849991,-298.72,0.00015,2]
[329445487,1718359850026,-360.08234564,0.00015,2]
[329445492,1718359850078,-3454.37247977,0.00015,2]
[329445496,1718359850151,-1795.36741921,0.00015,2]
[329445505,1718359850325,-651.4744408,0.00015,2]
[329445509,1718359850372,-21888.96346288,0.00015,2]
[329445514,1718359850435,-3230.612195,0.00015,2]
[329445517,1718359850465,-9752.56876707,0.00015,2]
[329445526,1718359850589,-56805.62764851,0.00015,2]
[329445736,1718360472825,163.85,9.776e-05,2]
[329445737,1718360619438,49517.7230004,9.776e-05,2]
[329445738,1718360619540,44592.35317768,9.776e-05,2]
[329445739,1718360695103,583.73,0.00010249,2]
[329445740,1718360845907,239.0,0.00028,90]
[329445741,1718360966170,-1468.0,0.00011126,2]
[329445742,1718360966202,-519.16694675,0.00011127,2]
[329445743,1718360966252,-381.76305325,0.00011128,2]
[329445744,1718360966346,-561.13486017,0.00011128,2]
[329445745,1718360966376,-296.05843551,0.00011128,2]
[329445746,1718360966403,-171.92,0.0001115,2]
[329445753,1718361033000,-406.95,0.00011968,2]
[329445754,1718361033019,-813.64,0.00012,2]
[329445755,1718361033040,-2179.8000154,0.00012021,2]
[329445756,1718361033074,-4052.1199846,0.00012021,2]
[329445757,1718361033107,-150.0,0.00012067,2]
[329445758,1718361033132,-150.0,0.00012067,2]
[329445759,1718361033146,-7592.43,0.00012068,2]
[329445760,1718361033169,-197.08,0.00012135,2]
[329445761,1718361033188,-775.8,0.00012135,2]
[329445762,1718361033205,-500.0,0.00012156,2]
[329445763,1718361033219,-1754.73,0.00012172,2]
[329445764,1718361033254,-800.0,0.00012208,2]
[329445765,1718361033295,-1000.0,0.00012223,2]
[329445766,1718361033316,-250.0,0.00012225,2]
[329445767,1718361033329,-4570.95,0.00012225,2]
[329445768,1718361033358,-154.95,0.00012272,2]
[329445769,1718361033397,-583.73,0.00012513,2]
[329445770,1718361033414,-5075.11,0.00012924,2]
[329445771,1718361033428,-1405.19,0.00012924,2]
[329445772,1718361033443,-299.99,0.00012924,2]
[329445773,1718361033460,-1114.0,0.00012947,2]
[329445774,1718361033488,-1114.0,0.00012951,2]
[329445775,1718361033500,-1114.0,0.00012954,2]
[329445776,1718361033520,-1114.0,0.00012958,2]
[329445777,1718361033532,-1114.0,0.00012961,2]
[329445778,1718361033561,-1114.0,0.00012964,2]
[329445779,1718361033574,-1114.0,0.00012968,2]
[329445780,1718361033593,-1114.0,0.00012971,2]
[329445781,1718361033616,-1114.0,0.00012975,2]
[329445782,1718361033660,-1114.0,0.00012978,2]
[329445783,1718361033675,-1114.0,0.00012981,2]
[329445784,1718361033688,-1114.0,0.00012985,2]
[329445785,1718361033700,-1114.0,0.00012988,2]
[329445786,1718361033711,-1114.0,0.00012992,2]
[329445787,1718361033723,-1114.0,0.00012995,2]
[329445788,1718361033735,-1114.0,0.00012998,2]
[329445789,1718361033747,-1114.0,0.00013002,2]
[329445790,1718361033766,-1114.0,0.00013005,2]
[329445791,1718361033777,-1114.0,0.00013009,2]
[329445792,1718361033788,-1114.0,0.00013012,2]
[329445793,1718361033801,-195.7,0.00013145,2]
[329445794,1718361033814,-250.0,0.00013218,2]
[329445795,1718361033825,-210.0,0.00013273,2]
[329445796,1718361033837,-210.0,0.00013273,2]
[329445797,1718361033848,-334.12663988,0.00013348,2]
[329445798,1718361033859,-424.35038744,0.00013499,2]
[329445799,1718361033874,-915.49415804,0.0001358,2]
[329445800,1718361033889,-1258.4,0.00013699,2]
[329445801,1718361033914,-311.44,0.00013699,2]
[329445802,1718361033929,-2612.57,0.00013699,2]
[329445803,1718361033945,-2751.0,0.00013699,2]